Cogmind - Beta 14 *** ADVENTURER MODE // 2024.10.04 @ 02:30:30 Player: Spoing Result: Self-destructed Performance ------------- Evolutions (4) 2000 Regions Visited (8) 1600 Robots Destroyed (49) 245 Value Destroyed (1121) 1121 Prototype IDs (32) 640 Alien Tech Used (0) 0 Bonus (300) 300 TOTAL SCORE: 5906 Bonus ------- Aligned with FarCom 300 Cogmind --------- Core Integrity 850/850 Matter 280/300 Energy 191/200 System Corruption 0% Temperature Cool (31) Movement Flying (19) Location -6/Factory Parts ------- > --- POWER (2) -------- Micro Nuclear Core Micro Nuclear Core > --- PROPULSION (7) --- Flight Unit Flight Unit Flight Unit Improved Flight Unit Improved VTOL Module Improved Cesium-ion Thruster Cooled VTOL Module > --- UTILITY (4) ------ Improved Heat Sink Medium Storage Unit Structural Scanner Advanced Visual Processing Unit > --- WEAPON (2) ------- Mace > --- INVENTORY (10) --- Micro Nuclear Core Improved VTOL Module Weight Redist. System Reaction Control System System Shield System Shield System Restoration Module Field Lobotomy Kit (5) Peak State ------------ > --- POWER ------------ Micro Nuclear Core Micro Nuclear Core > --- PROPULSION ------- Flight Unit Flight Unit Flight Unit Improved Flight Unit Improved VTOL Module Improved Cesium-ion Thruster Cooled VTOL Module > --- UTILITY ---------- Improved Heat Sink Medium Storage Unit Structural Scanner Advanced Visual Processing Unit > --- WEAPON ----------- Mace > --- INVENTORY -------- Micro Nuclear Core Improved VTOL Module Weight Redist. System Reaction Control System System Shield System Shield System Restoration Module Field Lobotomy Kit [Rating: 41] Favorites ----------- Power Improved Ion Engine Engine Improved Ion Engine Power Core Light Nuclear Core Propulsion Flight Unit Leg Aluminum Leg Wheel Wheel Flight Unit Flight Unit Utility Structural Scanner Device Structural Scanner Storage Large Storage Unit Processor Advanced Visual Processing Unit Protection Light Armor Plating Weapon Shotgun Ballistic Gun Shotgun Ballistic Cannon Improved Light Cannon Impact Weapon Mace Build | -11 -10 -9 -9 -9 -8 -8 -7 -6 ------- Run | Yrd Mat Mat Min Exi Min Mat Fac Fac Slots Evolved 8 | . . 2 . . . 2 2 2 Power 1 | . . . . . . . 1 . Propulsion 5 | . . 1 . . . 2 1 1 Utility 2 | . . 1 . . . . . 1 Weapon . | . . . . . . . . . Parts Attached 61 | 6 4 14 3 1 1 16 14 2 Power 9 | 1 1 3 . . . 2 2 . Engine 5 | 1 1 3 . . . . . . Core 4 | . . . . . . 2 2 . Reactor . | . . . . . . . . . Propulsion 24 | 2 1 2 2 . . 5 11 1 Treads . | . . . . . . . . . Leg 3 | . 1 2 . . . . . . Wheel 4 | 2 . . 2 . . . . . Hover . | . . . . . . . . . Flight 17 | . . . . . . 5 11 1 Utility 11 | 1 2 2 . . 1 3 1 1 Device 5 | . 1 1 . . 1 . 1 1 Storage 4 | 1 1 . . . . 2 . . Processor 1 | . . . . . . 1 . . Hackware . | . . . . . . . . . Protection 1 | . . 1 . . . . . . Artifact . | . . . . . . . . . Weapon 17 | 2 . 7 1 1 . 6 . . Energy Gun . | . . . . . . . . . Energy Cannon . | . . . . . . . . . Ballistic Gun 11 | 2 . 5 . 1 . 3 . . Ballistic Cannon 2 | . . 2 . . . . . . Launcher . | . . . . . . . . . Special Weapon . | . . . . . . . . . Impact Weapon 4 | . . . 1 . . 3 . . Slashing Weapon . | . . . . . . . . . Piercing Weapon . | . . . . . . . . . Special Melee Weapon . | . . . . . . . . . Unidentified Prototypes 4 | . . 1 . . . . 3 . Parts Lost . | . . . . . . . . . Power . | . . . . . . . . . Propulsion . | . . . . . . . . . Utility . | . . . . . . . . . Weapon . | . . . . . . . . . Highest Loss Streak . | . . . . . . . . . To Critical Strikes . | . . . . . . . . . Average Slot Usage (%) 96 | . 98 95 100 100 99 98 91 . Engine 7 | . 13 11 11 11 11 . . . Core 4 | . . . . . . 8 14 . Leg 8 | . 2 21 12 11 11 . . . Wheel 12 | . 25 11 21 22 22 . . . Flight 15 | . . . . . . 44 45 . Device 14 | . 13 17 22 22 21 10 7 . Storage 10 | . 14 11 11 11 11 9 7 . Processor 2 | . . . . . . 7 7 . Ballistic Gun 15 | . 28 19 16 11 22 12 . . Impact Weapon 3 | . . . 6 10 . 5 7 . Peak Build Rating 41 | 6 8 14 14 15 17 23 34 41 Average Rating 17 | 2 7 13 14 14 16 21 30 40 On Entrance 14 | . 6 8 14 14 15 17 22 34 Naked Turns . | . . . . . . . . . Heaviest Build 37 | 13 29 37 35 35 35 22 25 26 Greatest Support 33 | 26 26 20 26 26 26 21 28 33 Greatest Overweight (x) 3 | 1 2 3 3 1 1 1 1 . Average Overweight (x) . | . 1 2 1 1 1 . . . Largest Inventory Capacity 15 | 8 15 15 15 15 15 15 10 10 Average Capacity 13 | 5 14 15 15 15 15 9 10 10 Most Carried 15 | 5 8 15 15 15 15 15 10 9 Average Carried 11 | 3 3 14 14 14 14 9 9 8 Final Capacity 15 | 8 15 15 15 15 15 10 10 10 Final Carried 15 | 2 8 15 15 15 15 10 10 8 Class Distribution -------------------- 65% | Mutant 28% | Scavenger-Scout Dominant Class ---------------- Mutant | -10/Materials Mutant | -9/Materials Mutant | -9/Mines Mutant | -9/Exiles Mutant | -8/Mines Scavenger-Scout | -8/Materials Scavenger-Scout | -7/Factory Scavenger-Scout | -6/Factory Resources | -11 -10 -9 -9 -9 -8 -8 -7 -6 ----------- Run | Yrd Mat Mat Min Exi Min Mat Fac Fac Matter Collected 1334 | 180 196 420 16 . 162 197 163 . Remotely . | . . . . . . . . . Salvage Created 1568 | . 342 614 38 . 157 197 220 . Parts 106 | . 22 51 7 . 11 11 4 . Haulers Intercepted 9 | . 2 3 . . . 1 3 . Recyclers Shooed . | . . . . . . . . . Parts Field Recycled . | . . . . . . . . . Retrieved Matter . | . . . . . . . . . Parts Self-Destructed . | . . . . . . . . . Prevented . | . . . . . . . . . Kills | -11 -10 -9 -9 -9 -8 -8 -7 -6 ------- Run | Yrd Mat Mat Min Exi Min Mat Fac Fac Combat Hostiles Destroyed 31 | . 5 14 3 . 6 2 1 . Melee 1 | . . . . . . . 1 . Guns 28 | . 5 12 3 . 6 2 . . Cannons 2 | . . 2 . . . . . . Classes Destroyed 9 | . 3 4 . . . . 2 . Worker 2 | . . . . . . . 2 . Hauler 9 | . 2 3 . . . 1 3 . Operator 1 | . . 1 . . . . . . Watcher 6 | . 1 2 . . . 3 . . Swarmer 11 | . . 4 3 . 3 1 . . Grunt 12 | . 5 5 . . 2 . . . Duelist 2 | . . 1 . . 1 . . . Sentry 5 | . . 4 . . . 1 . . Programmer 1 | . . . . . . . 1 . Best Kill Streak 3 | . 2 3 3 . 3 2 1 . Combat Bots Only 3 | . 2 2 3 . 3 1 1 . Max Kills in Single Turn 2 | . 1 1 1 . 2 1 1 . Gunslinging 1 | . . . . . 1 . . . Exploded . | . . . . . . . . . Melee 1 | . . . . . . . 1 . Uniques/NPCs Destroyed . | . . . . . . . . . Combat | -11 -10 -9 -9 -9 -8 -8 -7 -6 -------- Run | Yrd Mat Mat Min Exi Min Mat Fac Fac Hostile Shots Fired 93 | . 16 41 6 . 16 4 10 . Missed 34 | . 5 13 1 . 9 2 4 . Damage Taken 545 | . 115 242 38 . 60 20 70 . Core 71 | . 23 13 . . . . 35 . Absorbed by Shields . | . . . . . . . . . Ignored by Resistances 164 | . 35 74 10 . 18 6 21 . Regen/Repaired (Parts) 15 | . . . . . . 15 . . Core Remaining (%) 96 | 100 90 . . . 96 100 95 . Volleys Fired 81 | . 23 37 3 . 10 8 . . Largest 2 | . 2 2 2 . 2 2 . . Hottest 78 | . 40 78 46 . 46 48 . . Shots Fired 161 | . 46 74 6 . 20 15 . . Gun 141 | . 46 54 6 . 20 15 . . Cannon 20 | . . 20 . . . . . . Launcher . | . . . . . . . . . Special . | . . . . . . . . . Kinetic 161 | . 46 74 6 . 20 15 . . Thermal . | . . . . . . . . . Explosive . | . . . . . . . . . Electromagnetic . | . . . . . . . . . Robot Hit Streak 20 | . 18 20 2 . 18 6 . . Robot Miss Streak 3 | . 1 3 2 . 2 1 . . Penetration Max . | . . . . . . . . . Secondary Targets 4 | . . . 2 . 2 . . . Max Gunslinging Chain 1 | . . . 1 . 1 . . . Shots Hit Robots 145 | . 40 54 4 . 18 16 13 . Core Hits 77 | . 17 34 3 . 12 10 1 . Critical Kills . | . . . . . . . . . Critical Parts Destroyed 4 | . . . . . . 1 3 . Critical Strikes 4 | . . . . . . 1 3 . Smash 4 | . . . . . . 1 3 . Melee Attacks 41 | . . . 2 . . 13 26 . Impact 41 | . . . 2 . . 13 26 . Slashing . | . . . . . . . . . Piercing . | . . . . . . . . . Sneak Attacks 8 | . . . . . . 3 5 . Combat Hostiles . | . . . . . . . . . Follow-up Attacks . | . . . . . . . . . Damage Inflicted 2750 | . 421 948 59 . 290 450 582 . Guns 1652 | . 419 698 59 . 290 186 . . Cannons 250 | . . 250 . . . . . . Explosions . | . . . . . . . . . Melee 846 | . . . . . . 264 582 . Ramming 2 | . 2 . . . . . . . Kinetic 1902 | . 419 948 59 . 290 186 . . Thermal . | . . . . . . . . . Explosive . | . . . . . . . . . Electromagnetic . | . . . . . . . . . Impact 846 | . . . . . . 264 582 . Slashing . | . . . . . . . . . Piercing . | . . . . . . . . . Highest Corruption 2 | . . . . . . . 2 . Average Corruption 1 | . . . . . . . 1 . Corruption Purged . | . . . . . . . . . Corruption Blocked . | . . . . . . . . . Effects 1 | . . . . . . . 1 . Message Errors 1 | . . . . . . . 1 . Overload Shots . | . . . . . . . . . Overflow Damage 312 | . . . . . . 116 196 . Projectiles . | . . . . . . . . . Explosions . | . . . . . . . . . Melee 312 | . . . . . . 116 196 . Knockbacks 3 | . . 2 . . . . 1 . Impact 1 | . . . . . . . 1 . Kinetic 2 | . . 2 . . . . . . Secondary . | . . . . . . . . . Self-Inflicted Damage 1 | . 1 . . . . . . . Shots . | . . . . . . . . . Rammed 1 | . 1 . . . . . . . Targets Rammed 1 | . 1 . . . . . . . Kicked . | . . . . . . . . . Crushed . | . . . . . . . . . Highest Temperature 171 | . 43 63 . . . 25 171 10 Average Temperature 45 | . 16 19 . . . 2 52 7 Received Heat Transfer 285 | . 120 93 . . 27 27 18 . Siege Activations . | . . . . . . . . . Robots Corrupted 6 | . . . . . . 2 4 . Combat Hostiles . | . . . . . . . . . Parts Fried 8 | . . . . . . 2 6 . Impact Corruptions 12 | . . . . . . 3 9 . Robots Melted . | . . . . . . . . . Combat Hostiles . | . . . . . . . . . Parts Melted . | . . . . . . . . . Heat Transferred . | . . . . . . . . . Parts Sabotaged . | . . . . . . . . . Parts Stolen . | . . . . . . . . . Parts Stripped . | . . . . . . . . . Power Chain Reactions . | . . . . . . . . . Alert | -11 -10 -9 -9 -9 -8 -8 -7 -6 ------- Run | Yrd Mat Mat Min Exi Min Mat Fac Fac Peak Influence 327 | . 114 327 158 . 70 112 326 5 Initial 87 | . . 40 87 . . 22 31 5 Average 113 | . 49 211 156 . 61 52 114 5 Maximum Alert Level 1 | . . 1 . . . . 1 . Low Security (%) 79 | 100 100 37 100 . 100 100 81 100 Level 1 20 | . . 62 . . . . 18 . Level 2 . | . . . . . . . . . Level 3 . | . . . . . . . . . Level 4 . | . . . . . . . . . Level 5 . | . . . . . . . . . High Security . | . . . . . . . . . Max Security . | . . . . . . . . . Squads Dispatched 10 | . . 1 . . . 1 8 . Investigation 3 | . . . . . . . 3 . Extermination 1 | . . . . . . . 1 . Reinforcement 6 | . . 1 . . . 1 4 . Assault . | . . . . . . . . . Garrison . | . . . . . . . . . Intercept . | . . . . . . . . . Searches Triggered . | . . . . . . . . . Construction Impeded . | . . . . . . . . . Haulers Reinforced 2 | . . . . . . . 2 . Active Scanning Responses . | . . . . . . . . . Cargo Convoy Interrupts . | . . . . . . . . . Stealth | -11 -10 -9 -9 -9 -8 -8 -7 -6 --------- Run | Yrd Mat Mat Min Exi Min Mat Fac Fac Distress Signals 2 | . . 1 . . . 1 . . Communications Jammed . | . . . . . . . . . Distress Signals . | . . . . . . . . . Times Spotted 59 | . 10 26 2 . 6 8 7 . Peak Tracking Total 4 | . 3 4 2 . 3 3 3 . Tactical Retreats 8 | . 2 4 . . . . 2 . Traps | -11 -10 -9 -9 -9 -8 -8 -7 -6 ------- Run | Yrd Mat Mat Min Exi Min Mat Fac Fac Traps Triggered 4 | . 1 . . . . . 3 . Indirectly . | . . . . . . . . . Trap Hack Attempts . | . . . . . . . . . Triggered . | . . . . . . . . . Disarmed . | . . . . . . . . . Reprogrammed . | . . . . . . . . . Reused . | . . . . . . . . . Traps Extracted . | . . . . . . . . . Installed . | . . . . . . . . . Triggered . | . . . . . . . . . Machines | -11 -10 -9 -9 -9 -8 -8 -7 -6 ---------- Run | Yrd Mat Mat Min Exi Min Mat Fac Fac Machines Disabled . | . . . . . . . . . Max in Single Turn . | . . . . . . . . . Garrison Access 2 | . . . . . . 1 1 . Machines Repaired . | . . . . . . . . . Machines Dismantled . | . . . . . . . . . Machines Sabotaged . | . . . . . . . . . Overloaded Fab Kills . | . . . . . . . . . Hacking | -11 -10 -9 -9 -9 -8 -8 -7 -6 --------- Run | Yrd Mat Mat Min Exi Min Mat Fac Fac Machines Accessed 27 | . 2 4 . 2 . 5 14 . Terminals 16 | . 2 2 . . . 3 9 . Fabricators 1 | . . . . . . . 1 . Repair Stations 1 | . . . . . . 1 . . Recycling Units . | . . . . . . . . . Scanalyzers 4 | . . 2 . . . . 2 . Garrison Access 3 | . . . . . . 1 2 . Total Hacks 88 | . 5 21 . 24 . 10 28 . Successful 62 | . 3 18 . 24 . 7 10 . Failed 26 | . 2 3 . . . 3 18 . Catastrophic 11 | . . 2 . . . 2 7 . Database Lockouts . | . . . . . . . . . Manual 24 | . 4 3 . 1 . 3 13 . Terminals 37 | . 5 5 . . . 7 20 . Fabricators 1 | . . . . . . . 1 . Repair Stations 2 | . . . . . . 2 . . Recycling Units . | . . . . . . . . . Scanalyzers 21 | . . 16 . . . . 5 . Garrison Access 3 | . . . . . . 1 2 . Terminal Hacks 39 | . 3 3 . 24 . 4 5 . Record 23 | . . . . 23 . . . . Prototype ID Bank 2 | . . 1 . . . 1 . . Open DSF 1 | . . . . . . . 1 . Level Access Points 1 | . . . . . . 1 . . Branch Access Points 4 | . 1 1 . . . . 2 . Terminal Index 4 | . 2 . . . . 1 1 . Locate Traps 2 | . . 1 . . . . 1 . Zone Layout 1 | . . . . . . 1 . . Derelict Proto ID Bank 1 | . . . . 1 . . . . Fabricator Hacks . | . . . . . . . . . Repair Station Hacks 2 | . . . . . . 2 . . Scan Component 1 | . . . . . . 1 . . Repair 1 | . . . . . . 1 . . Recycling Unit Hacks . | . . . . . . . . . Scanalyzer 19 | . . 15 . . . . 4 . Insert Component 9 | . . 7 . . . . 2 . Analyze 10 | . . 8 . . . . 2 . Garrison Access Hacks 2 | . . . . . . 1 1 . Seal Access 2 | . . . . . . 1 1 . Unauthorized Hacks . | . . . . . . . . . Terminals . | . . . . . . . . . Fabricators . | . . . . . . . . . Repair Stations . | . . . . . . . . . Recycling Units . | . . . . . . . . . Scanalyzers . | . . . . . . . . . Garrison Access . | . . . . . . . . . Data Cores Recovered . | . . . . . . . . . Used . | . . . . . . . . . Hacking Detections 20 | . 2 4 . . . 3 11 . Full Trace Events 3 | . . . . . . . 3 . Feedback Events . | . . . . . . . . . Feedback Blocked . | . . . . . . . . . Robot Schematics Acquired . | . . . . . . . . . Robots Built . | . . . . . . . . . Authchips . | . . . . . . . . . Time . | . . . . . . . . . Total Robot Build Rating . | . . . . . . . . . Part Schematics Acquired 8 | . . 6 . . . . 2 . Parts Built . | . . . . . . . . . Authchips . | . . . . . . . . . Time . | . . . . . . . . . Total Part Build Rating . | . . . . . . . . . Parts Repaired 1 | . . . . . . 1 . . Time 38 | . . . . . . 38 . . Parts Recycled . | . . . . . . . . . Recycled Matter . | . . . . . . . . . Retrieved Matter . | . . . . . . . . . Retrieved Components . | . . . . . . . . . Parts Scanalyzed 9 | . . 7 . . . . 2 . Part Schematics Acquired 8 | . . 6 . . . . 2 . Parts Damaged 1 | . . . . . . . 1 . Bothacking | -11 -10 -9 -9 -9 -8 -8 -7 -6 ------------ Run | Yrd Mat Mat Min Exi Min Mat Fac Fac Used RIF Installer . | . . . . . . . . . Robots Hacked . | . . . . . . . . . Non-combat . | . . . . . . . . . Combat . | . . . . . . . . . Robot Hacks Applied . | . . . . . . . . . Relay Couplers Released . | . . . . . . . . . Fabnet Peak Effective % . | . . . . . . . . . Robots Rewired . | . . . . . . . . . Allies Hacked . | . . . . . . . . . Hacks Repelled . | . . . . . . . . . Allies | -11 -10 -9 -9 -9 -8 -8 -7 -6 -------- Run | Yrd Mat Mat Min Exi Min Mat Fac Fac Total Allies 3 | . . . . . . . 3 . Largest Group 3 | . . . . . . . 3 . Highest-Rated Group 93 | . . . . . . . 93 . Highest-Rated Ally 31 | . . . . . . . 31 . Total Orders . | . . . . . . . . . Ally Attacks 22 | . . . . . . . 22 . Total Damage 339 | . . . . . . . 339 . Kills 3 | . . . . . . . 3 . Allies Corrupted . | . . . . . . . . . Allies Melted . | . . . . . . . . . Intel | -11 -10 -9 -9 -9 -8 -8 -7 -6 ------- Run | Yrd Mat Mat Min Exi Min Mat Fac Fac Robot Analysis Total . | . . . . . . . . . Derelict Logs Recovered 1 | . . . 1 . . . . . Drone Launches . | . . . . . . . . . Drone Recoveries . | . . . . . . . . . Exploration | -11 -10 -9 -9 -9 -8 -8 -7 -6 ------------- Run | Yrd Mat Mat Min Exi Min Mat Fac Fac Turns Passed 4155 | 45 633 1028 216 238 585 568 837 5 Spaces Moved 4182 | 43 301 649 181 224 410 517 1843 14 Core 18 | 18 . . . . . . . . Treads . | . . . . . . . . . Legs 2 | . . 2 . . . . . . Wheels 1788 | 25 301 647 181 224 410 . . . Hover . | . . . . . . . . . Flight 2374 | . . . . . . 517 1843 14 Fastest Speed 19 | 50 90 110 105 105 105 28 22 19 Average Speed 62 | 76 103 124 105 105 105 28 23 19 Slowest Speed 190 | 100 110 190 125 105 105 106 108 19 Overloaded Moves . | . . . . . . . . . Propulsion Burnouts . | . . . . . . . . . Robots Hopped . | . . . . . . . . . Cave-ins Triggered . | . . . . . . . . . Exploration Rate (%) 47 | 4 51 53 46 60 78 40 46 . Regions Visited 8 Branch Regions 3 Pre-discovered Areas 2 | . . . 1 1 . . . . Known Exits Taken 2 | . . 1 . . . 1 . . Unknown Exits Taken 6 | 1 1 . 1 1 1 . 1 . Scrap Searched 1 | . . . . . 1 . . . Spaces Dug 20 | . . . 1 . . 9 10 . Terrain Destroyed 21 | . . 1 1 . . 9 10 . Melee 20 | . . . 1 . . 9 10 . Projectile 1 | . . 1 . . . . . . AOE . | . . . . . . . . . Terrain Rammed . | . . . . . . . . . Walls Destroyed . | . . . . . . . . . Machines Disabled . | . . . . . . . . . Actions | -11 -10 -9 -9 -9 -8 -8 -7 -6 --------- Run | Yrd Mat Mat Min Exi Min Mat Fac Fac Total 5514 | 53 580 796 196 226 550 901 2196 16 Wait 1054 | . 243 72 2 . 122 326 289 . Move 4174 | 42 300 648 180 223 409 516 1842 14 Hop . | . . . . . . . . . Pick Up 58 | 5 8 16 3 1 4 10 11 . Fast Attach 10 | 3 . 2 . . . . 5 . Attach 18 | 3 3 2 . . 1 6 1 2 Detach 1 | . 1 . . . . . . . Swap 33 | . 1 10 3 1 . 10 8 . Drop 43 | . . 9 3 1 4 12 14 . Fire 81 | . 23 37 3 . 10 8 . . Melee 41 | . . . 2 . . 13 26 . Ram 1 | . 1 . . . . . . . Kick . | . . . . . . . . . Crush . | . . . . . . . . . Escape Stasis . | . . . . . . . . . Rewire . | . . . . . . . . . Trap . | . . . . . . . . . Miscellaneous . | . . . . . . . . . Route ------- -11/Scrapyard -10/Materials (discovered 3 exits: *Mat x2 / Min) -9/Materials (discovered 4 exits: *Mat / *Min / *Sto x2) -9/Mines -9/Exiles -8/Mines -8/Materials (discovered 3 exits: *Fac x3) -7/Factory (discovered 3 exits: [*Fac] / *Low x2) -6/Factory History --------- Turn | Location | Event 10 | -11/Scrapyard | Discovered new exit (range 16) 46 | -11/Scrapyard | Entered Materials 121 | -10/Materials | Identified exit to Mines 163 | -10/Materials | Discovered new exit (range 4) 304 | -10/Materials | Build established: Mutant 632 | -10/Materials | Discovered new exit (range 10) 679 | -10/Materials | Entered another Materials area 679 | -9/Materials | Evolved 2 slots: Propulsion x1, Utility x1 958 | -9/Materials | Discovered new exit (range 6) 1274 | -9/Materials | Identified exit to Mines 1274 | -9/Materials | Identified exit to Storage 1482 | -9/Materials | Discovered new exit (range 10) 1707 | -9/Materials | Entered Mines 1799 | -9/Mines | Learned location of Recycling (-9) 1916 | -9/Mines | Deemed a non-threat by the Exiles lab entrance 1916 | -9/Mines | Discovered new exit (range 6) 1923 | -9/Mines | Entered Exiles 1949 | -9/Exiles | Met 8R-AWN 1967 | -9/Exiles | Met EX-HEX 1996 | -9/Exiles | Met EX-BIN 2011 | -9/Exiles | Aligned with FarCom system 2012 | -9/Exiles | Given EX-Vault access code 2037 | -9/Exiles | Opened EX-Vault 2044 | -9/Exiles | Found Field Lobotomy Kit 2079 | -9/Exiles | Warned to stay clear of 0b10 Research branches 2109 | -9/Exiles | Met EX-DEC 2116 | -9/Exiles | Learned location of Zion (-6) 2145 | -9/Exiles | Discovered new exit (range 14) 2161 | -9/Exiles | Left Exiles lab with Field Lobotomy Kit 2161 | -9/Exiles | Entered Mines 2735 | -8/Mines | Discovered new exit (range 10) 2746 | -8/Mines | Entered Materials 2746 | -8/Materials | Evolved 2 slots: Propulsion x2 2797 | -8/Materials | Repaired Lgt. Nuclear Core 3217 | -8/Materials | Identified exit to Factory 3314 | -8/Materials | Entered Factory 3314 | -7/Factory | Evolved 2 slots: Power x1, Propulsion x1 3484 | -7/Factory | Build established: Scavenger-Scout 3502 | -7/Factory | Allied Derelicts emerged from ambush trap array 3609 | -7/Factory | Discovered new exit (range 15) 3743 | -7/Factory | Lost 3 allies 3752 | -7/Factory | Identified exit to Lower Caves 4140 | -7/Factory | Discovered new exit (range 18) 4151 | -7/Factory | Entered another Factory area 4151 | -6/Factory | Evolved 2 slots: Propulsion x1, Utility x1 4156 | -6/Factory | Self-destructed Last Messages --------------- Dropped Lgt. Nuclear Core. Acquired Mic. Nuclear Core. Acquired 30 matter. Connecting with Terminal... D8U1C%#L>P#BEPAH037V0O, NL #/9| O-24 Administrator: "IFF HANDSHAKE FAILED. SECURING TERMINAL." Destroyed Imp. Datajack. O-24 Administrator system corrupted by crushing effect. O-24 Administrator uses terminal to summon reinforcements. ALERT: Hostiles spotted, dispatching reinforcements to Terminal F007. O-24 Administrator locks terminal. EXIT=FOUND PARAMETERS=PROPULSION+1,UTILITY+1 LOCATION=UNKNOWN GOAL=ESCAPE Receiving FarCom transmissions... Map ----- +----------------------------------------------------+ | ?????????????????????????????????????????????????? | | ?????????????????????????????????????????????????? | | ?????????????????????????????????????????????????? | | ?????????????????????????????????????????????????? | | ?????????????????????????????????????????????????? | | ?????????????????????????????????????????????????? | | ?????????????????????????????????????????????????? | | ?????????????????????????????????????????????????? | | ?????????????????????????????????????????????????? | | ?????????????????????????????????????????????????? | | ?????????????????????????????????????????????????? | | ?????????????????????????????????????????????????? | | ?????????????????????????????????????????????????? | | ?????????????????????????????????????????????????? | | ?????????????????????????????????????????????????? | | ?????????????????????????????????????????????????? | | ?????????????????????????????????????????????????? | | ??????????????????################???????????????? | | ??????????????????################???????????????? | | ??????????????????## ##???????????????? | | ??????????????????## ##???????????????? | | ??????????????????## """" """" ##???????????????? | | ??????????????????## """" """" ####### ?????????? | | ??????????????????## """" """" ####### ?????????? | | ??????????????????## """" """" # # ?????????? | | ??????????????????## @ # # ?????????? | | ??????????????????## """" """" # # ?????????? | | ??????????????????## """" """" + + ?????????? | | ?????????????????? + """" """" # # ?????????? | | ??????????????????## """" """" # # ?????????? | | ??????????????????## + # ?????????? | | ??????????????????###########+#####+####?????????? | | ??????????????????########### ?????????? | | ?????????????????????????????????????????????????? | | ?????????????????????????????????????????????????? | | ?????????????????????????????????????????????????? | | ?????????????????????????????????????????????????? | | ?????????????????????????????????????????????????? | | ?????????????????????????????????????????????????? | | ?????????????????????????????????????????????????? | | ?????????????????????????????????????????????????? | | ?????????????????????????????????????????????????? | | ?????????????????????????????????????????????????? | | ?????????????????????????????????????????????????? | | | | | | | | | | | | | +----------------------------------------------------+ Best States ------------- Heat Dissipation 45 Energy Generation 24 Energy Capacity 280 Matter Stores 300 Matter Capacity 300 Sight Range 20 Robot Scan Range 14 Terrain Scan Density 10 Armor Coverage 150 Resistance: KI 20 Resistance: TH 20 Resistance: EX 20 Resistance: EM 20 Resistance: I 20 Resistance: S 20 Resistance: P 20 Evasion (%) 65 Offensive Hacking 10 Item Schematics ----------------- Imp. Flight Unit | -9/Materials | Scanalyzed Lgt. Nuclear Core | -9/Materials | Scanalyzed Flight Unit | -9/Materials | Scanalyzed Sml. Storage Unit | -9/Materials | Scanalyzed Structural Scanner | -9/Materials | Scanalyzed Mace | -9/Materials | Scanalyzed Imp. VTOL Module | -7/Factory | Scanalyzed Imp. Cesium-ion Thruster | -7/Factory | Scanalyzed Robot Schematics ------------------ None Fabricated ------------ Nothing Alien Tech Used ----------------- None Achievements -------------- Party Time Challenges ------------ None Game ------ Seed NeutrinoTargetingCorpse Manual? 0 Play Time 01:03:45 Cumulative 22.2 hours Start 2024.10.03 @ 22:58:18 End 2024.10.04 @ 02:30:30 Sessions 3 Manual Loads 0 Difficulty Adventurer Special Mode None Game No. 19 Rogue 18 Adventurer 1 Explorer 0 Win Type - Total 0 Types 0/0/0/0/0/0/0/0/0 Lore% 12 Gallery% 21 Achievement% 21 Wizard Run 0 Options --------- Layout 1 ASCII 0 Keyboard 0 Movement Mouse Keybinds 0 Fullscreen 1 Font 32/SmallcapsGlow Map View 50x35 Zoom Use 0% Tactical HUD 0 Map Filters NONE Filters NONE Steam 1 RUN: 07fc9d91-df5c-4805-8f6d-7fb726d4fbd1